fUST/lending_fUST_20250926
["ID","MTS","AMOUNT","RATE_DAILY","PERIOD"]
[387737434,1758833441815,-151.0,0.00019183,2]
[387737435,1758833441824,-151.0,0.00019183,2]
[387737436,1758833441834,-151.0,0.00019183,2]
[387737437,1758833441843,-151.0,0.00019183,2]
[387737438,1758833441853,-151.0,0.00019183,2]
[387737439,1758833441863,-151.0,0.00019183,2]
[387737440,1758833441872,-151.0,0.00019183,2]
[387737441,1758833441882,-151.0,0.00019183,2]
[387737442,1758833441892,-1000.0,0.00019183,2]
[387737443,1758833441901,-176.542872,0.00019183,2]
[387737444,1758833441915,-482.60587553,0.00019183,2]
[387737445,1758833441924,-480.0,0.00019183,2]
[387737446,1758833441934,-480.0,0.00019183,2]
[387737447,1758833441943,-158.97483,0.00019183,2]
[387737448,1758833441953,-480.0,0.00019183,2]
[387737449,1758833441962,-480.0,0.00019183,2]
[387737450,1758833441971,-480.0,0.00019183,2]
[387737451,1758833441981,-151.0,0.00019183,2]
[387737452,1758833441990,-151.0,0.00019183,2]
[387737453,1758833442000,-151.0,0.00019183,2]
[387737454,1758833442009,-151.0,0.00019183,2]
[387737455,1758833442018,-480.0,0.00019183,2]
[387737456,1758833442028,-504.67106033,0.00019183,2]
[387737457,1758833442037,-480.0,0.00019183,2]
[387737458,1758833442047,-151.0,0.00019183,2]
[387737459,1758833442057,-480.0,0.00019183,2]
[387737460,1758833442066,-565.52,0.00019183,2]
[387737461,1758833442076,-487.03702914,0.00019183,2]
[387737462,1758833442086,-480.0,0.00019183,2]
[387737463,1758833442096,-152.175508,0.00019183,2]
[387737464,1758833442105,-466.44658512,0.00019183,2]
[387737465,1758833442115,-500.0,0.00019183,2]
[387737466,1758833442125,-480.0,0.00019183,2]
[387737467,1758833442135,-151.0,0.00019183,2]
[387737468,1758833442144,-151.0,0.00019183,2]
[387737469,1758833442154,-151.0,0.00019183,2]
[387737470,1758833442164,-151.0,0.00019183,2]
[387737471,1758833442173,-151.0,0.00019183,2]
[387737472,1758833442183,-151.0,0.00019183,2]
[387737473,1758833442192,-151.0,0.00019183,2]
[387737474,1758833442202,-151.0,0.00019183,2]
[387737475,1758833442212,-151.0,0.00019183,2]
[387737476,1758833442221,-151.0,0.00019183,2]
[387737477,1758833442231,-151.0,0.00019183,2]
[387737478,1758833442241,-226.018976,0.00019183,2]
[387737479,1758833442251,-480.0,0.00019183,2]
[387737480,1758833442260,-566.83192568,0.00019183,2]
[387737481,1758833442270,-480.0,0.00019183,2]
[387737482,1758833442279,-480.0,0.00019183,2]
[387737483,1758833442290,-480.0,0.00019183,2]
[387737484,1758833442299,-480.0,0.00019183,2]
[387737485,1758833442309,-480.0,0.00019183,2]
[387737486,1758833442319,-480.0,0.00019183,2]
[387737487,1758833442328,-480.0,0.00019183,2]
[387737488,1758833442338,-151.0,0.00019183,2]
[387737489,1758833442349,-151.0,0.00019183,2]
[387737490,1758833442359,-151.0,0.00019183,2]
[387737491,1758833442370,-151.0,0.00019183,2]
[387737492,1758833442379,-151.0,0.00019183,2]
[387737493,1758833442390,-151.0,0.00019183,2]
[387737494,1758833442399,-201.28137564,0.00019183,2]
[387737495,1758833442411,-193.271804,0.00019183,2]
[387737496,1758833442421,-480.0,0.00019183,2]
[387737497,1758833442432,-480.0,0.00019183,2]
[387737498,1758833442442,-210.535776,0.00019183,2]
[387737499,1758833442452,-210.535776,0.00019183,2]
[387737500,1758833442463,-210.535776,0.00019183,2]
[387737501,1758833442485,-210.535776,0.00019183,2]
[387737502,1758833442495,-210.535776,0.00019183,2]
[387737503,1758833442561,-210.535776,0.00019183,2]
[387737504,1758833442573,-210.535776,0.00019183,2]
[387737505,1758833442584,-210.535776,0.00019183,2]
[387737506,1758833442594,-210.535776,0.00019183,2]
[387737507,1758833442604,-210.535776,0.00019183,2]
[387737508,1758833442614,-210.535776,0.00019183,2]
[387737509,1758833442624,-210.535768,0.00019183,2]
[387737510,1758833442633,-480.0,0.00019183,2]
[387737511,1758833442643,-480.0,0.00019183,2]
[387737512,1758833442652,-480.0,0.00019183,2]
[387737513,1758833442663,-480.0,0.00019183,2]
[387737515,1758833442673,-480.0,0.00019183,2]
[387737517,1758833442682,-480.0,0.00019183,2]
[387737519,1758833442692,-480.0,0.00019183,2]
[387737521,1758833442702,-480.0,0.00019183,2]
[387737523,1758833442712,-460.83838889,0.00019183,2]
[387737525,1758833442722,-480.0,0.00019183,2]
[387737527,1758833442731,-177.90301656,0.00019183,2]
[387737529,1758833442741,-480.0,0.00019183,2]
[387737531,1758833442750,-480.0,0.00019183,2]
[387737533,1758833442759,-480.0,0.00019183,2]
[387737535,1758833442769,-480.0,0.00019183,2]
[387737537,1758833442778,-480.0,0.00019183,2]
[387737539,1758833442788,-480.0,0.00019183,2]
[387737541,1758833442798,-1174.31,0.00019183,2]
[387737543,1758833442807,-480.0,0.00019183,2]
[387737545,1758833442818,-151.0,0.00019183,2]
[387737547,1758833442827,-151.0,0.00019183,2]
[387737549,1758833442837,-480.0,0.00019183,2]
[387737551,1758833442846,-151.0,0.00019183,2]
[387737553,1758833442855,-151.0,0.00019183,2]
[387737555,1758833442865,-151.0,0.00019183,2]
[387737557,1758833442876,-151.0,0.00019183,2]
[387737559,1758833442885,-151.0,0.00019183,2]
[387737561,1758833442894,-151.0,0.00019183,2]
[387737563,1758833442906,-151.0,0.00019183,2]
[387737565,1758833442915,-151.0,0.00019183,2]
[387737567,1758833442924,-480.0,0.00019183,2]
[387737569,1758833442934,-544.635121,0.00019183,2]
[387737571,1758833442943,-544.635121,0.00019183,2]
[387737573,1758833442953,-544.635121,0.00019183,2]
[387737575,1758833442963,-544.635121,0.00019183,2]
[387737577,1758833442972,-544.635121,0.00019183,2]
[387737579,1758833442981,-544.635121,0.00019183,2]
[387737581,1758833442990,-544.635121,0.00019183,2]
[387737583,1758833442999,-544.635128,0.00019183,2]
[387737585,1758833443008,-811.51,0.00019183,2]
[387737587,1758833443017,-480.0,0.00019183,2]
[387737588,1758833443028,-447.542379,0.00019183,2]
[387737590,1758833443037,-447.542379,0.00019183,2]
[387737592,1758833443047,-447.542379,0.00019183,2]
[387737594,1758833443056,-447.542379,0.00019183,2]
[387737596,1758833443065,-447.542379,0.00019183,2]
[387737598,1758833443075,-447.542379,0.00019183,2]
[387737600,1758833443085,-447.542379,0.00019183,2]
[387737602,1758833443094,-447.542386,0.00019183,2]
[387737604,1758833443104,-151.0,0.00019183,2]
[387737606,1758833443113,-151.0,0.00019183,2]
[387737608,1758833443122,-151.0,0.00019183,2]
[387737610,1758833443131,-151.0,0.00019183,2]
[387737612,1758833443140,-151.0,0.00019183,2]
[387737614,1758833443150,-480.0,0.00019183,2]
[387737616,1758833443161,-218.314582,0.00019183,2]
[387737617,1758833443171,-480.0,0.00019183,2]
[387737618,1758833443180,-480.0,0.00019183,2]
[387737619,1758833443190,-151.0,0.00019183,2]
[387737620,1758833443199,-151.0,0.00019183,2]
[387737621,1758833443209,-345.92845325,0.00019183,2]
[387737622,1758833443219,-480.0,0.00019183,2]
[387737623,1758833443228,-490.89381489,0.00019183,2]
[387737624,1758833443238,-480.0,0.00019183,2]
[387737625,1758833443247,-484.95030407,0.00019183,2]
[387737626,1758833443256,-4616.1,0.00019183,2]
[387737627,1758833443265,-480.0,0.00019183,2]
[387737628,1758833443275,-1943.42,0.00019183,2]
[387737629,1758833443284,-485.80067785,0.00019184,2]
[387737630,1758833443294,-482.111047,0.00019184,2]
[387737631,1758833443304,-480.0,0.00019184,2]
[387737632,1758833443313,-480.0,0.00019184,2]
[387737633,1758833443324,-472.58197324,0.00019184,2]
[387737634,1758833443334,-480.0,0.00019184,2]
[387737635,1758833443346,-151.0,0.00019184,2]
[387737636,1758833443360,-151.0,0.00019184,2]
[387737637,1758833443369,-151.0,0.00019184,2]
[387737638,1758833443379,-151.0,0.00019184,2]
[387737639,1758833443390,-151.0,0.00019184,2]
[387737640,1758833443406,-489.35532013,0.00019184,2]
[387737642,1758833443416,-480.0,0.00019184,2]
[387737644,1758833443426,-500.0,0.00019184,2]
[387737646,1758833443436,-151.65471073,0.00019184,2]
[387737648,1758833443444,-480.0,0.00019184,2]
[387737649,1758833443454,-483.9995486,0.00019184,2]
[387737651,1758833443463,-581.01115105,0.00019184,2]
[387737653,1758833443473,-480.0,0.00019184,2]
[387737656,1758833443483,-293.66467597,0.00019184,2]
[387737657,1758833443492,-480.0,0.00019184,2]
[387737666,1758833443555,-227.6028227,0.00019184,2]
[387737668,1758833443565,-480.0,0.00019184,2]
[387737670,1758833443574,-480.0,0.00019184,2]
[387737672,1758833443584,-151.0,0.00019184,2]
[387737674,1758833443593,-151.0,0.00019184,2]
[387737676,1758833443602,-151.0,0.00019184,2]
[387737678,1758833443612,-151.0,0.00019184,2]
[387737680,1758833443621,-151.0,0.00019184,2]
[387737682,1758833443631,-490.78083244,0.00019184,2]
[387737684,1758833443640,-151.0,0.00019184,2]
[387737686,1758833443649,-151.0,0.00019184,2]
[387737688,1758833443661,-480.0,0.00019184,2]
[387737690,1758833443670,-553.66,0.00019184,2]
[387737692,1758833443680,-248.58177487,0.00019184,2]
[387737694,1758833443689,-151.0,0.00019184,2]
[387737696,1758833443699,-151.0,0.00019184,2]
[387737698,1758833443708,-151.0,0.00019184,2]
[387737700,1758833443717,-480.0,0.00019184,2]
[387737702,1758833443727,-569.37,0.00019184,2]
[387737704,1758833443736,-492.01912991,0.00019184,2]
[387737706,1758833443745,-151.0,0.00019184,2]
[387737708,1758833443755,-1115.08,0.00019184,2]
[387737710,1758833443764,-480.0,0.00019184,2]
[387737712,1758833443773,-500.0,0.00019184,2]
[387737714,1758833443784,-151.0,0.00019184,2]
[387737717,1758833443793,-151.0,0.00019184,2]
[387737720,1758833443803,-151.0,0.00019185,2]
[387737723,1758833443812,-194.982678,0.00019185,2]
[387737726,1758833443821,-328.0,0.00019185,2]
[387737729,1758833443831,-328.0,0.00019185,2]
[387737732,1758833443841,-328.0,0.00019185,2]
[387737734,1758833443850,-328.0,0.00019185,2]
[387737736,1758833443859,-328.0,0.00019185,2]
[387737738,1758833443870,-328.0,0.00019185,2]
[387737740,1758833443880,-328.0,0.00019185,2]
[387737742,1758833443890,-328.0,0.00019185,2]
[387737744,1758833443899,-328.0,0.00019185,2]
[387737746,1758833443911,-328.0,0.00019185,2]
[387737748,1758833443921,-328.0,0.00019185,2]
[387737751,1758833443934,-172.0,0.00019185,2]
[387737753,1758833443943,-156.0,0.00019185,2]
[387737755,1758833443953,-156.0,0.00019185,2]
[387737757,1758833443963,-156.0,0.00019185,2]
[387737759,1758833443972,-156.0,0.00019185,2]
[387737762,1758833443990,-162.98096703,0.00019185,2]
[387737764,1758833444007,-328.0,0.00019185,2]
[387737768,1758833444024,-328.0,0.00019185,2]
[387737771,1758833444043,-379.08033987,0.00019185,2]
[387737774,1758833444061,-328.0,0.00019185,2]
[387737776,1758833444077,-328.0,0.00019185,2]
[387737779,1758833444096,-328.0,0.00019185,2]
[387737782,1758833444110,-328.0,0.00019185,2]
[387737784,1758833444125,-328.0,0.00019185,2]
[387737787,1758833444143,-328.0,0.00019185,2]
[387737790,1758833444163,-328.0,0.00019185,2]
[387737793,1758833444178,-328.0,0.00019185,2]
[387737796,1758833444193,-328.0,0.00019185,2]
[387737797,1758833444209,-328.0,0.00019185,2]
[387737798,1758833444225,-328.0,0.00019185,2]
[387737799,1758833444239,-328.0,0.00019185,2]
[387737800,1758833444254,-328.0,0.00019185,2]
[387737801,1758833444268,-328.0,0.00019185,2]
[387737802,1758833444282,-328.0,0.00019185,2]
[387737803,1758833444297,-328.0,0.00019185,2]
[387737804,1758833444311,-618.11011001,0.00019185,2]
[387737805,1758833444326,-991.58,0.00019185,2]
[387737806,1758833444341,-480.0,0.00019185,2]
[387737807,1758833444379,-458.44466245,0.00019194,2]
[387737808,1758833444406,-500.0,0.00019198,2]
[387737811,1758833444429,-8700.30000802,0.00019258,2]
[387737814,1758833444447,-352.174902,0.00019352,2]
[387737817,1758833444464,-352.174902,0.00019352,2]
[387737820,1758833444480,-151.0,0.00019352,2]
[387737822,1758833444497,-352.174902,0.00019352,2]
[387737825,1758833444515,-352.174902,0.00019352,2]
[387737828,1758833444529,-151.0,0.00019352,2]
[387737830,1758833444544,-151.0,0.00019352,2]
[387737833,1758833444559,-151.0,0.00019352,2]
[387737835,1758833444570,-151.0,0.00019352,2]
[387737837,1758833444579,-172.080768,0.00019352,2]
[387737839,1758833444588,-151.0,0.00019352,2]
[387737841,1758833444597,-151.0,0.00019352,2]
[387737843,1758833444607,-194978.82138558,0.00019352,2]
[387737881,1758833444959,-1250.0000102,0.00019352,2]
[387737884,1758833444972,-5229.44835053,0.00019352,2]
[387737887,1758833444995,-516.59118003,0.00019352,2]
[387737890,1758833445011,-4083.9277528,0.00019352,2]
[387737892,1758833445023,-5056.85840394,0.00019352,2]
[387738024,1758833446515,-480.0,0.00019181,2]
[387738026,1758833446525,-3238.68066263,0.00019194,2]
[387738028,1758833446534,-20589.1000606,0.00019352,2]
[387738031,1758833446546,-7806.42498272,0.00019352,2]
[387738034,1758833446570,-27570.30243207,0.00019352,2]
[387738036,1758833446581,-102918.52544153,0.00019352,2]
[387738038,1758833446590,-2803.32016459,0.00019358,2]
[387738040,1758833446600,-500.0,0.00019373,2]
[387738042,1758833446609,-500.0,0.00019373,2]
[387738044,1758833446619,-500.0,0.00019373,2]
[387738047,1758833446629,-500.0,0.00019373,2]
[387738049,1758833446638,-501.12478516,0.00019373,2]
[387738051,1758833446648,-501.13355081,0.00019373,2]
[387738052,1758833446659,-500.0,0.00019373,2]
[387738055,1758833446668,-500.0,0.00019373,2]
[387738057,1758833446678,-500.0,0.00019373,2]
[387738059,1758833446688,-500.0,0.00019373,2]
[387738062,1758833446698,-500.75007155,0.00019373,2]
[387738063,1758833446707,-500.0,0.00019373,2]
[387738065,1758833446716,-500.0,0.00019373,2]
[387738067,1758833446725,-500.0,0.00019373,2]
[387738069,1758833446736,-503.46314464,0.00019373,2]
[387738071,1758833446745,-2900.12821456,0.00019391,2]
[387738074,1758833446755,-519.09157928,0.00019453,2]
[387738076,1758833446764,-255.15608497,0.00019454,2]
[387738077,1758833446774,-480.0,0.00019454,2]
[387738079,1758833446783,-593.51595937,0.00019454,2]
[387738082,1758833446793,-480.0,0.00019454,2]
[387738084,1758833446802,-480.0,0.00019454,2]
[387738086,1758833446811,-153.28285566,0.00019454,2]
[387738088,1758833446821,-480.0,0.00019454,2]
[387738090,1758833446831,-480.0,0.00019454,2]
[387738092,1758833446840,-480.0,0.00019454,2]
[387738094,1758833446849,-480.0,0.00019454,2]
[387738096,1758833446859,-480.0,0.00019454,2]
[387738098,1758833446868,-480.0,0.00019454,2]
[387738100,1758833446877,-480.0,0.00019454,2]
[387738102,1758833446886,-1042.42,0.00019454,2]
[387738104,1758833446895,-480.0,0.00019454,2]
[387738105,1758833446907,-480.0,0.00019454,2]
[387738107,1758833446918,-501.63678501,0.00019454,2]
[387738110,1758833446927,-4474.8,0.00019454,2]
[387738112,1758833446937,-595.5,0.00019454,2]
[387738114,1758833446946,-480.0,0.00019455,2]
[387738116,1758833446955,-480.0,0.00019455,2]
[387738118,1758833446965,-480.0,0.00019455,2]
[387738120,1758833446974,-480.0,0.00019455,2]
[387738122,1758833446983,-480.0,0.00019455,2]
[387738124,1758833446993,-480.0,0.00019455,2]
[387738126,1758833447002,-480.0,0.00019455,2]
[387738128,1758833447011,-187.27240576,0.00019455,2]
[387738130,1758833447023,-480.0,0.00019455,2]
[387738142,1758833447121,-480.0,0.00019455,2]
[387738144,1758833447134,-480.0,0.00019455,2]
[387738146,1758833447143,-511.76963107,0.00019455,2]
[387738148,1758833447153,-538.06,0.00019455,2]
[387738150,1758833447163,-480.0,0.00019455,2]
[387738152,1758833447172,-480.0,0.00019455,2]
[387738154,1758833447181,-876.8,0.00019455,2]
[387738156,1758833447191,-480.0,0.00019455,2]
[387738158,1758833447200,-480.0,0.00019455,2]
[387738160,1758833447210,-1154.01,0.00019455,2]
[387738162,1758833447219,-480.0,0.00019455,2]
[387738164,1758833447229,-480.0,0.00019455,2]
[387738166,1758833447238,-480.0,0.00019455,2]
[387738168,1758833447247,-485.23,0.00019455,2]
[387738170,1758833447256,-480.0,0.00019455,2]
[387738172,1758833447266,-2678.16,0.00019455,2]
[387738174,1758833447275,-527.47,0.00019455,2]
[387738176,1758833447284,-480.0,0.00019455,2]
[387738178,1758833447294,-480.0,0.00019455,2]
[387738180,1758833447303,-480.0,0.00019455,2]
[387738182,1758833447313,-220.38118385,0.00019455,2]
[387738184,1758833447323,-606.23,0.00019455,2]
[387738186,1758833447332,-480.0,0.00019455,2]
[387738188,1758833447343,-817.09,0.00019455,2]
[387738190,1758833447354,-497.06,0.00019455,2]
[387738192,1758833447363,-480.0,0.00019455,2]
[387738194,1758833447372,-597.96,0.00019455,2]
[387738196,1758833447382,-480.0,0.00019455,2]
[387738197,1758833447391,-480.0,0.00019455,2]
[387738200,1758833447401,-480.0,0.00019455,2]
[387738202,1758833447413,-480.0,0.00019455,2]
[387738204,1758833447423,-480.0,0.00019455,2]
[387738206,1758833447432,-480.0,0.00019455,2]
[387738208,1758833447441,-540.0,0.00019455,2]
[387738210,1758833447450,-480.0,0.00019455,2]
[387738212,1758833447460,-480.0,0.00019455,2]
[387738214,1758833447469,-575.9,0.00019455,2]
[387738216,1758833447478,-480.0,0.00019455,2]
[387738218,1758833447487,-480.0,0.00019455,2]
[387738220,1758833447496,-1039.18,0.00019455,2]
[387738221,1758833447505,-1283.74,0.00019455,2]
[387738224,1758833447515,-549.27,0.00019455,2]
[387738225,1758833447524,-480.0,0.00019456,2]
[387738226,1758833447533,-480.0,0.00019456,2]
[387738227,1758833447542,-480.0,0.00019456,2]
[387738228,1758833447551,-480.0,0.00019456,2]
[387738229,1758833447560,-480.0,0.00019456,2]
[387738230,1758833447570,-1267.58,0.00019456,2]
[387738231,1758833447579,-480.0,0.00019456,2]
[387738233,1758833447589,-2724.34,0.00019456,2]
[387738235,1758833447599,-538.06,0.00019456,2]
[387738236,1758833447607,-1530.64,0.00019456,2]
[387738238,1758833447617,-480.0,0.00019456,2]
[387738240,1758833447627,-480.0,0.00019456,2]
[387738243,1758833447636,-2349.48,0.00019456,2]
[387738245,1758833447645,-490.89,0.00019456,2]
[387738246,1758833447657,-480.0,0.00019456,2]
[387738248,1758833447666,-577.99290684,0.00019457,2]
[387738251,1758833447676,-588.79019564,0.00019457,2]
[387738253,1758833447686,-480.0,0.00019457,2]
[387738255,1758833447695,-480.0,0.00019457,2]
[387738256,1758833447705,-480.0,0.00019457,2]
[387738259,1758833447714,-480.0,0.00019457,2]
[387738260,1758833447724,-480.0,0.00019457,2]
[387738262,1758833447733,-480.0,0.00019457,2]
[387738264,1758833447743,-480.0,0.00019457,2]
[387738267,1758833447753,-480.0,0.00019457,2]
[387738268,1758833447762,-480.0,0.00019457,2]
[387738271,1758833447771,-599.79985161,0.00019457,2]
[387738272,1758833447781,-480.0,0.00019457,2]
[387738274,1758833447791,-480.0,0.00019457,2]
[387738277,1758833447801,-480.0,0.00019457,2]
[387738279,1758833447810,-480.0,0.00019457,2]
[387738281,1758833447820,-480.0,0.00019457,2]
[387738283,1758833447830,-480.0,0.00019457,2]
[387738285,1758833447839,-480.0,0.00019457,2]
[387738287,1758833447848,-705.9,0.00019457,2]
[387738289,1758833447858,-480.0,0.00019457,2]
[387738291,1758833447867,-480.0,0.00019457,2]
[387738292,1758833447877,-480.0,0.00019457,2]
[387738294,1758833447886,-480.0,0.00019457,2]
[387738296,1758833447895,-480.0,0.00019457,2]
[387738299,1758833447908,-480.0,0.00019457,2]
[387738300,1758833447918,-480.0,0.00019457,2]
[387738302,1758833447927,-493.58768169,0.00019457,2]
[387738304,1758833447937,-450.23292492,0.00019457,2]
[387738307,1758833447947,-480.0,0.00019457,2]
[387738309,1758833447956,-480.0,0.00019457,2]
[387738311,1758833447965,-506.8680444,0.00019457,2]
[387738313,1758833447975,-480.0,0.00019457,2]
[387738315,1758833447984,-480.0,0.00019457,2]
[387738317,1758833447994,-1638.65,0.00019457,2]
[387738319,1758833448003,-270.18544533,0.00019457,2]
[387738321,1758833448012,-480.0,0.00019457,2]
[387738323,1758833448022,-487.31335252,0.00019457,2]
[387738325,1758833448031,-480.0,0.00019457,2]
[387738326,1758833448040,-480.0,0.00019457,2]
[387738329,1758833448050,-480.0,0.00019457,2]
[387738330,1758833448059,-487.7504481,0.00019457,2]
[387738332,1758833448068,-241.91584758,0.00019457,2]
[387738333,1758833448078,-480.0,0.00019457,2]
[387738334,1758833448087,-826.61,0.00019457,2]
[387738335,1758833448097,-480.0,0.00019457,2]
[387738336,1758833448106,-484.37245727,0.00019457,2]
[387738337,1758833448116,-480.0,0.00019457,2]
[387738338,1758833448125,-245.63153987,0.00019457,2]
[387738339,1758833448134,-343.80582233,0.00019457,2]
[387738341,1758833448144,-480.0,0.00019457,2]
[387738343,1758833448153,-480.0,0.00019457,2]
[387738345,1758833448164,-480.0,0.00019457,2]
[387738347,1758833448174,-480.0,0.00019457,2]
[387738349,1758833448184,-565.52,0.00019457,2]
[387738351,1758833448193,-480.0,0.00019457,2]
[387738353,1758833448203,-500.0,0.00019457,2]
[387738355,1758833448212,-480.0,0.00019457,2]
[387738357,1758833448222,-480.0,0.00019457,2]
[387738359,1758833448231,-480.0,0.00019457,2]
[387738361,1758833448241,-480.0,0.00019457,2]
[387738363,1758833448250,-480.0,0.00019457,2]
[387738364,1758833448260,-480.0,0.00019457,2]
[387738367,1758833448269,-623.90188797,0.00019457,2]
[387738369,1758833448279,-496.75323506,0.00019457,2]
[387738370,1758833448288,-480.0,0.00019457,2]
[387738373,1758833448298,-480.0,0.00019457,2]
[387738375,1758833448307,-480.0,0.00019457,2]
[387738377,1758833448317,-480.0,0.00019457,2]
[387738379,1758833448327,-480.0,0.00019457,2]
[387738381,1758833448337,-480.0,0.00019457,2]
[387738383,1758833448348,-1174.31,0.00019457,2]
[387738384,1758833448358,-480.0,0.00019457,2]
[387738386,1758833448368,-200.78996093,0.00019457,2]
[387738389,1758833448378,-482.97775326,0.00019457,2]
[387738391,1758833448389,-480.0,0.00019457,2]
[387738393,1758833448398,-480.0,0.00019457,2]
[387738395,1758833448409,-480.0,0.00019457,2]
[387738397,1758833448419,-198.75826003,0.00019457,2]
[387738399,1758833448438,-499.999999,0.00019457,2]
[387739195,1758833499543,160.0,0.00021,6]
[387739196,1758833509403,176.05805,0.0001908,2]
[387739225,1758834474749,637.0,0.00019022,2]
[387739227,1758834549631,77.19206184,0.00018927,2]
[387739228,1758834549658,226.27737097,0.00018927,2]
[387739245,1758834632610,-300.0,0.00019176,2]
[387739246,1758834632620,-1200.0,0.00019176,2]
[387739247,1758834632629,-500.0,0.00019177,2]
[387739248,1758834632639,-274.24648041,0.00019177,2]
[387739249,1758834632648,-500.0,0.00019177,2]
[387739250,1758834632657,-500.0,0.00019177,2]
[387739251,1758834632666,-500.0,0.00019177,2]
[387739252,1758834632675,-500.0,0.00019177,2]
[387739253,1758834632684,-500.0,0.00019177,2]
[387739254,1758834632694,-358.71914488,0.00019177,2]
[387739255,1758834632708,-500.0,0.00019177,2]
[387739256,1758834632717,-500.0,0.00019177,2]
[387739257,1758834632727,-500.0,0.00019177,2]
[387739258,1758834632738,-500.0,0.00019177,2]
[387739259,1758834632748,-300.0,0.00019177,2]
[387739260,1758834632757,-332.81614707,0.00019178,2]
[387739261,1758834632767,-480.0,0.00019178,2]
[387739262,1758834632778,-480.0,0.00019178,2]
[387739263,1758834632787,-480.0,0.00019178,2]
[387739264,1758834632797,-480.0,0.00019178,2]
[387739265,1758834632806,-480.0,0.00019178,2]
[387739266,1758834632815,-480.0,0.00019178,2]
[387739267,1758834632824,-587.37601522,0.00019178,2]
[387739268,1758834632833,-480.0,0.00019178,2]
[387739269,1758834632842,-480.0,0.00019178,2]
[387739270,1758834632851,-480.0,0.00019178,2]
[387739271,1758834632860,-480.0,0.00019178,2]
[387739272,1758834632870,-480.0,0.00019178,2]
[387739273,1758834632879,-480.0,0.00019178,2]
[387739274,1758834632888,-480.0,0.00019178,2]
[387739276,1758834632897,-480.0,0.00019178,2]
[387739278,1758834632906,-480.0,0.00019178,2]
[387739279,1758834632915,-487.38707966,0.00019178,2]
[387739281,1758834632925,-480.0,0.00019178,2]
[387739283,1758834632934,-480.0,0.00019178,2]
[387739285,1758834632944,-180.00291692,0.00019178,2]
[387739287,1758834632953,-500.0,0.00019178,2]
[387739289,1758834632963,-480.0,0.00019178,2]
[387739291,1758834632972,-480.0,0.00019178,2]
[387739293,1758834632982,-480.0,0.00019178,2]
[387739295,1758834632991,-480.0,0.00019178,2]
[387739297,1758834633000,-480.0,0.00019178,2]
[387739299,1758834633010,-480.0,0.00019178,2]
[387739301,1758834633019,-480.0,0.00019178,2]
[387739303,1758834633029,-480.0,0.00019178,2]
[387739305,1758834633038,-192.82163182,0.00019178,2]
[387739306,1758834633048,-490.58265998,0.00019178,2]
[387739307,1758834633057,-480.0,0.00019178,2]
[387739308,1758834633067,-591.65,0.00019178,2]
[387739310,1758834633077,-480.0,0.00019178,2]
[387739312,1758834633087,-480.0,0.00019178,2]
[387739314,1758834633097,-356.81011991,0.00019178,2]
[387739316,1758834633107,-480.0,0.00019178,2]